bitfinex/quotes_ETHUSD_20240713
["timestamp","ask_amount","ask_price","bid_price","bid_amount"]
[1720910431767,3.0,3174.0,3171.4,3.70721]
[1720910431965,1.5,3173.9,3171.4,3.70721]
[1720910432130,2.2662,3174.6,3171.8,2.632]
[1720910432342,2.2662,3174.6,3172.4,1.5]
[1720910432542,3.7662,3175.4,3172.9,2.20617]
[1720910432773,1.5,3174.9,3173.0,0.55]
[1720910432942,7.48,3174.9,3172.7,0.55]
[1720910433148,2.2662,3175.4,3172.7,0.41]
[1720910433382,1.5,3175.2,3172.8,0.55]
[1720910433567,2.2662,3175.4,3173.2,2.20596]
[1720910433772,2.2662,3175.4,3173.3,0.55]
[1720910433945,2.2662,3175.4,3173.1,3.55]
[1720910434143,2.2662,3175.4,3172.7,0.41]
[1720910434144,3.7662,3176.3,3173.7,2.20561]
[1720910434487,1.5,3175.8,3173.8,0.55]
[1720910434639,1.5,3175.8,3173.6,1.5]
[1720910434640,1.5,3175.6,3173.7,0.55]
[1720910434841,1.5,3175.2,3173.3,3.0]
[1720910435187,1.7698,3175.3,3173.4,1.17027452]
[1720910435346,1.7698,3175.3,3174.0,1.17027452]
[1720910435769,1.7698,3175.3,3174.3,1.17027452]
[1720910435939,16.71600573,3176.2,3174.3,1.17027452]
[1720910436159,16.71600573,3176.2,3174.5,1.17027452]
[1720910436364,16.71600573,3176.2,3175.1,1.17027452]
[1720910436365,1.7698,3176.2,3175.1,1.17027452]
[1720910436891,1.7698,3176.2,3175.0,1.17027452]
[1720910437391,2.2662,3177.1,3175.2,1.17027452]
[1720910437543,1.8482,3177.0,3174.8,1.17027452]
[1720910437749,1.8482,3176.8,3174.8,1.17027452]
[1720910438048,1.8482,3176.8,3175.2,1.17027452]
[1720910438246,1.8482,3176.8,3175.4,1.17027452]
[1720910439081,17.71620369,3177.7,3175.4,1.17027452]
[1720910439303,5.90999796,3177.7,3176.4,1.17027452]
[1720910439462,0.15999796,3177.7,3176.4,1.17027452]
[1720910439789,0.00124995,3177.8,3176.5,1.17027452]
[1720910440784,1.7887,3177.7,3175.8,1.17027452]
[1720910441085,1.7887,3177.7,3176.3,1.17027452]
[1720910441287,1.7887,3177.7,3175.7,1.17027452]
[1720910441488,1.7887,3177.7,3175.0,1.5]
[1720910441489,1.7887,3177.7,3175.9,1.17027452]
[1720910441692,1.7887,3177.7,3175.7,1.17027452]
[1720910442348,1.7887,3177.7,3175.5,1.17027452]
[1720910442349,1.7887,3177.3,3175.5,1.17027452]
[1720910442571,4.7887,3177.3,3175.5,1.17027452]
[1720910444294,1.8483,3177.0,3175.5,1.17027452]
[1720910444586,4.8483,3177.0,3175.5,1.17027452]
[1720910445868,1.8483,3177.0,3175.5,1.17027452]
[1720910446553,2.4337,3177.6,3176.2,1.17027452]
[1720910446765,2.565,3178.0,3176.2,1.17027452]
[1720910447252,2.565,3177.6,3175.9,1.17027452]
[1720910447700,2.565,3177.6,3175.7,3.48547452]
[1720910447992,3.0,3177.5,3175.9,1.17027452]
[1720910448497,3.0,3177.5,3176.0,1.72027452]
[1720910448657,3.0,3177.5,3176.3,1.17027452]
[1720910448859,1.84644995,3177.8,3175.9,1.17027452]
[1720910449078,3.54644995,3177.8,3175.8,1.17027452]
[1720910449292,3.0,3177.7,3176.2,1.17027452]
[1720910449491,1.84644995,3177.8,3176.2,1.17027452]
[1720910450564,1.84644995,3177.8,3176.6,1.17027452]
[1720910450795,1.84644995,3177.8,3176.4,1.17027452]
[1720910451289,1.84644995,3177.8,3175.1,2.20459]
[1720910451290,1.84644995,3177.8,3175.7,1.17027452]
[1720910451867,1.84644995,3177.8,3176.1,1.17027452]
[1720910452179,1.84644995,3177.8,3175.7,1.17027452]
[1720910452387,1.84644995,3177.8,3176.2,1.17027452]
[1720910452570,1.84644995,3177.8,3176.4,1.17027452]
[1720910453080,1.84644995,3177.8,3176.1,1.17027452]
[1720910453297,1.84644995,3177.8,3175.9,1.17027452]
[1720910453607,1.84644995,3177.8,3176.4,1.17027452]
[1720910453759,1.84644995,3177.8,3176.0,1.17027452]
[1720910454109,1.84644995,3177.8,3176.4,1.17027452]
[1720910454110,0.00124995,3177.8,3176.4,1.17027452]
[1720910454259,2.4598059,3178.1,3176.8,1.17027452]
[1720910454455,0.15769251,3178.3,3176.8,1.17027452]
[1720910454682,8.1837,3178.4,3176.8,1.17027452]
[1720910454894,5.0437,3178.4,3176.8,1.17027452]
[1720910455101,3.8744763,3178.4,3176.8,1.17027452]
[1720910455295,2.4337,3178.4,3176.8,1.17027452]
[1720910455600,2.624,3178.9,3176.8,1.17027452]
[1720910456270,2.624,3178.9,3176.2,3.70389]
[1720910456271,2.624,3178.9,3177.1,1.17027452]
[1720910456499,3.0,3178.8,3177.1,1.17027452]
[1720910456799,3.0,3178.8,3176.9,1.17027452]
[1720910456962,3.0,3178.8,3177.1,1.17027452]
[1720910457357,3.0,3178.8,3176.8,1.17027452]
[1720910457709,1.7395,3178.7,3176.8,1.17027452]
[1720910460206,3.0,3178.8,3176.4,1.17027452]
[1720910460207,1.6853,3178.2,3176.4,1.17027452]
[1720910460409,4.6853,3178.2,3176.4,1.17027452]
[1720910460606,1.6853,3178.1,3176.4,1.17027452]
[1720910460792,4.6853,3178.1,3176.4,1.17027452]
[1720910460992,4.6853,3178.1,3176.7,1.17027452]
[1720910461190,1.6853,3178.1,3176.6,1.17027452]
[1720910461431,1.6853,3178.1,3176.8,1.17027452]
[1720910461639,1.6853,3178.1,3177.1,1.17027452]
[1720910462131,1.6853,3178.1,3176.9,1.17027452]
[1720910462532,1.6853,3178.1,3176.4,1.17027452]
[1720910462708,1.6853,3178.1,3176.6,1.17027452]
[1720910463221,1.6853,3178.1,3176.8,1.17027452]
[1720910463531,1.6853,3178.1,3176.4,1.17027452]
[1720910463735,1.6853,3178.1,3176.8,1.17027452]
[1720910464237,1.6853,3178.1,3176.5,1.17027452]
[1720910464453,1.6853,3178.1,3176.2,1.5]
[1720910464454,1.6853,3178.1,3176.8,1.32827452]
[1720910464676,1.6853,3178.1,3176.8,0.158]
[1720910465703,3.0,3178.6,3177.2,1.17027452]
[1720910465936,3.0,3178.8,3177.2,1.17027452]
[1720910466336,3.0,3178.8,3176.8,1.32827452]
[1720910466538,4.8148,3178.8,3176.8,1.32827452]
[1720910467306,4.8148,3178.8,3177.1,1.17027452]
[1720910468043,4.8148,3178.8,3176.9,1.17027452]
[1720910468245,4.8148,3178.8,3176.8,0.158]
[1720910468246,4.8148,3178.8,3177.2,1.17027452]
[1720910469033,1.8148,3178.8,3177.7,1.17027452]
[1720910469352,2.4337,3179.1,3177.3,1.17027452]
[1720910469552,2.58778111,3179.1,3177.3,1.17027452]
[1720910470247,4.28778111,3179.1,3176.9,1.17027452]
[1720910470409,4.28778111,3179.1,3177.2,1.17027452]
[1720910470614,2.563,3178.7,3177.2,1.17027452]
[1720910470841,2.563,3178.7,3176.9,1.17027452]
[1720910471047,2.563,3178.7,3177.0,1.09603833]
[1720910471247,2.563,3178.7,3177.2,1.17027452]
[1720910471824,2.563,3178.7,3177.0,1.81647344]
[1720910472025,2.563,3178.7,3177.0,1.17027452]
[1720910472454,2.563,3178.7,3177.1,2.74017677]
[1720910472630,2.563,3178.7,3177.2,2.74011094]
[1720910472956,2.563,3178.7,3177.3,1.0960098]
[1720910473165,2.563,3178.7,3177.1,0.64619892]
[1720910473333,2.563,3178.7,3177.2,3.38622823]
[1720910473533,2.563,3178.7,3177.3,2.74002931]
[1720910473716,2.563,3178.7,3177.4,1.09601172]
[1720910474038,2.563,3178.7,3177.2,0.64619892]
[1720910474434,2.563,3178.7,3177.3,3.38622895]
[1720910474643,2.563,3178.7,3177.4,2.74003003]
[1720910474821,2.563,3178.7,3177.5,2.74003003]
[1720910475159,3.0,3179.0,3177.7,1.17027452]
[1720910475455,1.44,3179.4,3178.0,1.17027452]
[1720910475656,1.44,3179.4,3177.8,2.73973816]
[1720910475657,2.563,3179.2,3178.1,1.09580725]
[1720910475952,2.563,3179.2,3177.9,1.17027452]
[1720910476116,2.563,3179.2,3178.0,1.09582441]
[1720910476456,2.563,3179.2,3178.1,1.09583408]
[1720910476620,2.563,3179.2,3177.9,1.81647344]
[1720910476822,2.563,3179.2,3178.0,2.7395501]
[1720910477156,1.44,3179.4,3178.4,1.17027452]
[1720910477321,1.44,3179.4,3178.5,1.09572625]
[1720910477522,1.44,3179.4,3178.3,0.64619892]
[1720910477722,0.09774768,3179.8,3178.4,4.55579124]
[1720910477922,0.09774768,3179.8,3178.5,3.38551672]
[1720910478136,0.09774768,3179.8,3179.4,2.3944]
[1720910478360,2.563,3181.3,3179.7,1.63087626]
[1720910478657,2.563,3181.3,3179.9,0.65236997]
[1720910478857,4.263,3181.3,3180.0,2.7393178]
[1720910479059,4.263,3181.3,3179.7,0.65236997]
[1720910479264,2.563,3181.3,3179.5,0.65236997]
[1720910479562,2.563,3181.3,3179.6,2.73828666]
[1720910479742,2.563,3181.3,3179.5,0.65236997]
[1720910479743,1.7,3181.1,3179.7,1.09530754]
[1720910480060,3.0,3181.2,3179.5,0.65236997]
[1720910480229,2.563,3180.8,3179.6,1.09532553]
[1720910480429,3.0,3180.7,3179.3,0.65236997]
[1720910480636,3.0,3180.7,3179.4,2.73847697]
[1720910480940,3.0,3180.7,3179.5,1.09538445]
[1720910481123,3.0,3180.7,3179.2,0.65236997]
[1720910481431,3.0,3180.7,3179.5,0.65236997]
[1720910481629,2.563,3181.2,3179.6,2.73825871]
[1720910481864,3.0,3181.1,3179.7,1.0953544]
[1720910482022,3.0,3181.1,3179.5,0.65236997]
[1720910482224,3.0,3181.1,3179.8,2.15236997]
[1720910482576,2.563,3181.0,3179.7,0.65236997]
[1720910482861,2.563,3181.0,3179.8,1.09519095]
[1720910483065,2.563,3181.0,3179.6,2.15236997]
[1720910483269,2.4022,3181.4,3179.6,1.5]
[1720910483469,2.4022,3181.4,3179.7,1.09520825]
[1720910483667,2.563,3181.0,3179.5,1.5]
[1720910483828,2.563,3181.0,3179.6,2.7380599]
[1720910484163,3.0,3180.9,3179.5,1.5]
[1720910484479,3.0,3180.9,3179.7,1.5]
[1720910484643,3.0,3180.9,3179.5,1.5]
[1720910484829,5.4022,3181.4,3179.7,1.5]
[1720910485028,3.0,3181.3,3179.9,1.5]
[1720910485225,1.44,3181.6,3179.9,1.5]
[1720910485464,2.563,3181.9,3180.3,1.5]
[1720910486475,0.0166,3184.0,3181.2,2.3944]
[1720910486677,1.7,3185.3,3183.2,2.563]
[1720910486828,2.563,3185.7,3184.2,1.5]
[1720910487027,2.563,3185.7,3183.7,0.7734375]
[1720910487276,0.00252606,3188.0,3183.8,3.1678375]
[1720910487277,1.7,3186.9,3183.8,3.1678375]
[1720910487427,2.563,3186.6,3184.3,0.7734375]
[1720910487762,4.1022,3187.7,3185.2,0.7734375]
[1720910487967,0.72908856,3188.0,3184.8,2.3944]
[1720910487968,2.563,3187.4,3185.7,0.7734375]
[1720910488181,0.00252606,3188.0,3185.7,0.7734375]
[1720910488494,1.7,3187.2,3185.3,0.7734375]
[1720910488695,1.7,3186.5,3184.8,2.3944]
[1720910488871,1.7,3186.5,3183.8,0.7734375]
[1720910488872,1.7,3185.9,3183.8,0.7734375]
[1720910489052,2.4265625,3185.9,3183.4,0.7734375]
[1720910489382,0.03878943,3189.3,3185.6,2.3944]
[1720910489584,1.7,3188.6,3185.6,2.3944]
[1720910489813,1.7,3188.6,3186.8,0.7734375]
[1720910490080,1.7,3188.6,3185.6,2.3944]
[1720910490081,1.7,3188.6,3186.7,0.7734375]
[1720910490283,1.7,3188.6,3184.7,2.47855495]
[1720910490284,0.03878943,3189.3,3187.4,2.19611]
[1720910490452,0.03878943,3189.3,3187.4,2.3944]
[1720910490789,0.03878943,3189.3,3186.3,3.0]
[1720910490955,2.609,3189.1,3186.4,0.55]
[1720910491311,0.03878943,3189.3,3186.5,2.19675]
[1720910491440,0.03878943,3189.3,3186.6,0.55]
[1720910492181,0.03878943,3189.3,3186.3,2.74685]
[1720910492356,0.03878943,3189.3,3186.3,0.55]
[1720910492559,0.03878943,3189.3,3187.1,2.19629]
[1720910492746,0.03878943,3189.3,3187.5,2.19607]
[1720910492946,0.03878943,3189.3,3187.5,0.55]
[1720910493193,0.03878943,3189.3,3187.5,2.455]
[1720910493478,0.03878943,3189.3,3187.8,2.19583]
[1720910493689,0.03878943,3189.3,3187.9,2.19578]
[1720910493846,0.03878943,3189.3,3188.3,2.1955]
[1720910494041,0.03878943,3189.3,3188.4,0.55]
[1720910494295,2.47529701,3191.1,3188.4,0.55]
[1720910494444,2.47529701,3191.1,3188.1,0.55]
[1720910494650,0.2475297,3191.0,3188.1,0.55]
[1720910494841,0.2475297,3191.0,3188.4,2.1954]
[1720910495081,2.75456042,3191.4,3188.7,2.19524]
[1720910495259,2.75456042,3191.4,3188.8,0.55]
[1720910495558,2.75456042,3191.4,3188.8,0.06269776]
[1720910495758,2.75456042,3191.4,3188.5,2.74538]
[1720910495759,2.75456042,3191.4,3188.9,0.55]
[1720910495979,2.75456042,3191.4,3188.5,0.55]
[1720910496202,2.609,3191.1,3188.5,0.55]
[1720910496403,4.309,3191.1,3188.5,0.55]
[1720910496569,2.609,3191.1,3188.5,0.55]
[1720910496952,5.809,3190.5,3187.2,2.3062]
[1720910497193,5.809,3190.5,3186.1,1.5]
[1720910497194,3.9768,3189.8,3186.4,2.471463]
[1720910497439,1.7,3189.2,3186.4,0.274693]
[1720910497558,2.609,3188.7,3185.5,2.3062]
[1720910497751,4.309,3188.7,3185.5,2.3062]
[1720910498047,9.62570902,3188.9,3185.5,2.3062]
[1720910498048,3.0,3188.6,3185.5,2.3062]
[1720910498289,0.3,3188.5,3185.9,2.19716]
[1720910498477,0.3,3188.5,3186.0,2.25982689]
[1720910498769,3.0,3189.0,3186.4,1.5]
[1720910498972,2.4768,3189.1,3186.3,2.19689]
[1720910499206,2.4768,3190.2,3186.9,4.2112]
[1720910499509,2.4768,3190.2,3187.1,6.30535]
[1720910499649,0.24768,3190.1,3187.4,2.19613]
[1720910500085,0.24768,3190.1,3187.5,0.55]
[1720910500301,2.609,3189.8,3187.3,0.55]
[1720910500450,2.609,3189.8,3187.0,0.55]
[1720910500651,0.2609,3189.7,3187.1,0.28562]
[1720910501066,0.2609,3189.7,3185.7,1.5]
[1720910501067,2.4768,3189.6,3186.3,1.5]
[1720910501301,2.609,3189.2,3186.3,1.5]
[1720910501507,3.0,3189.1,3186.5,1.5]
[1720910501803,3.0,3189.1,3187.1,1.5]
[1720910501965,2.4768,3189.6,3187.2,0.0627318]
[1720910502170,0.22377,3189.5,3187.1,1.5]
[1720910503077,0.22377,3189.5,3186.9,4.5]
[1720910503268,0.22377,3189.5,3187.0,1.5]
[1720910503269,3.22377,3189.5,3187.0,1.5]
[1720910503610,3.22377,3189.5,3187.0,3.69642]
[1720910503903,3.22377,3189.5,3187.7,1.5]
[1720910503904,0.22377,3189.5,3187.7,1.5]
[1720910504124,0.270057,3189.4,3187.5,2.19607]
[1720910504264,0.24768,3190.1,3187.9,1.5]
[1720910504466,2.4768,3190.5,3188.0,0.55]
[1720910505111,2.4768,3190.5,3187.6,2.3062]
[1720910505277,2.4768,3190.5,3188.1,1.5]
[1720910505479,2.4768,3190.5,3187.6,2.3062]
[1720910505480,2.4768,3190.5,3188.3,2.19546]
[1720910505692,0.313,3190.6,3188.6,2.19531]
[1720910505865,2.4768,3191.3,3188.7,2.47747589]
[1720910506224,2.4768,3191.3,3188.9,1.5]
[1720910506364,2.4768,3191.3,3189.0,0.55]
[1720910507095,2.4768,3191.3,3188.7,0.219531]
[1720910507408,2.4768,3191.3,3188.8,0.55]
[1720910507807,2.4768,3191.3,3188.8,2.05]
[1720910508132,1.7,3191.1,3188.6,1.5]
[1720910508414,1.7,3191.1,3187.9,4.81964]
[1720910508415,3.0,3191.1,3188.4,1.5]
[1720910508574,0.5609,3191.0,3188.5,0.55]
[1720910508775,0.5609,3191.0,3188.9,1.5]
[1720910509002,0.5609,3191.0,3189.0,0.55]
[1720910509811,0.5609,3191.0,3188.5,3.0]
[1720910510012,0.5609,3191.0,3188.7,1.5]
[1720910510177,0.5609,3191.0,3188.8,0.205]
[1720910510374,0.35236042,3191.4,3189.7,2.19453]
[1720910510720,0.35236042,3191.4,3190.2,1.905]
[1720910511009,2.4768,3193.1,3190.3,0.55]
[1720910511220,0.116297,3194.0,3191.9,2.3062]
[1720910511430,0.116297,3194.0,3192.3,1.5]
[1720910511591,0.116297,3194.0,3192.4,0.55]
[1720910511791,0.116297,3194.0,3192.5,2.51032]
[1720910512032,0.116297,3194.0,3192.6,5.896532]
[1720910512202,0.00787858,3195.1,3194.5,2.19122]
[1720910512558,0.00787858,3195.1,3192.6,4.3448381]
[1720910512559,0.00787858,3195.1,3194.6,1.06494949]
[1720910512830,0.00787858,3195.1,3194.6,1.63995657]
[1720910513014,0.00787858,3195.1,3194.6,1.08995657]
[1720910513218,0.00787858,3195.1,3193.8,1.08443877]
[1720910513393,0.00787858,3195.1,3193.9,0.55]
[1720910514406,0.00787858,3195.1,3194.7,2.19109]
[1720910514730,0.0333592,3195.8,3194.8,0.769109]
[1720910514890,0.0333592,3195.8,3194.8,0.55]
[1720910515531,0.0333592,3195.8,3195.4,2.1906]
[1720910515743,0.0333592,3195.8,3195.0,3.0]
[1720910515923,0.0333592,3195.8,3195.1,0.55]
[1720910516109,0.0333592,3195.8,3193.6,2.19186]
[1720910516110,0.0333592,3195.8,3193.7,2.3062]
[1720910516311,0.0333592,3195.8,3193.8,0.449805]
[1720910516513,0.0333592,3195.8,3193.7,2.3062]
[1720910517413,0.0333592,3195.8,3193.3,1.905]
[1720910517612,0.0333592,3195.8,3193.0,2.4056]
[1720910517813,0.0333592,3195.8,3193.1,1.905]
[1720910518133,0.0333592,3195.8,3193.2,2.19212]
[1720910518336,0.0333592,3195.8,3193.0,2.4056]
[1720910518337,0.0333592,3195.8,3193.3,0.219212]
[1720910518642,0.0333592,3195.8,3193.0,2.4056]
[1720910518935,0.0333592,3195.8,3193.1,1.905]
[1720910519602,0.0333592,3195.8,3193.0,2.4056]
[1720910519804,0.0333592,3195.8,3193.0,4.3106]
[1720910520512,0.0333592,3195.8,3193.1,3.0]
[1720910520702,0.33669512,3195.8,3193.2,0.69056]
[1720910520906,0.33669512,3195.8,3193.2,2.59556]
[1720910521903,0.33669512,3195.8,3193.2,0.69056]
[1720910522139,2.609,3195.5,3192.7,1.5]
[1720910522340,2.609,3195.5,3192.6,1.5]
[1720910522341,3.0,3195.4,3192.6,1.5]
[1720910522539,3.0,3195.4,3192.2,2.4056]
[1720910523039,2.3674,3195.3,3191.9,3.161082]
[1720910523226,2.3674,3195.3,3192.3,1.5]
[1720910523432,2.609,3194.9,3192.1,1.5]
[1720910523609,2.609,3194.9,3192.3,1.5]
[1720910523952,0.53674,3195.2,3192.5,1.5]
[1720910524262,3.53674,3195.2,3192.5,1.5]
[1720910524403,2.609,3194.9,3191.8,2.37]
[1720910524609,2.3674,3194.8,3192.5,0.158]
[1720910524810,2.3674,3194.8,3192.5,1.658]
[1720910525050,5.3674,3194.8,3192.5,0.158]
[1720910526452,2.3674,3194.8,3192.5,0.158]
[1720910526617,2.3674,3194.8,3192.8,1.905]
[1720910526819,2.3674,3194.8,3193.0,1.905]
[1720910527044,2.3674,3194.8,3193.1,0.55]
[1720910527419,2.3674,3194.8,3192.6,2.4056]
[1720910527760,2.3674,3194.8,3192.5,0.3643]
[1720910527912,0.23674,3194.7,3192.5,0.158]
[1720910528759,2.609,3194.4,3192.5,0.158]
[1720910528945,2.3674,3194.3,3192.1,1.5]
[1720910529245,5.3674,3194.3,3191.6,1.5]
[1720910529417,0.79764,3194.2,3191.6,1.5]
[1720910529813,1.7,3194.1,3191.6,1.5]
[1720910530015,2.609,3193.8,3190.8,2.756461]
[1720910530215,2.609,3193.2,3190.8,1.5]
[1720910530446,2.3674,3193.1,3190.8,1.5]
[1720910530651,0.49764,3193.0,3190.8,1.5]
[1720910531947,0.49764,3193.0,3190.5,1.5]
[1720910532151,3.49764,3193.0,3190.5,1.5]
[1720910533052,3.49764,3193.0,3190.7,1.5]
[1720910533557,3.49764,3193.0,3190.8,0.55]
[1720910533879,0.32250669,3192.9,3190.8,0.55]
[1720910534992,0.32250669,3192.9,3190.7,1.5]
[1720910535279,0.32250669,3192.9,3190.8,0.55]
[1720910536582,1.7,3192.7,3189.8,4.5]
[1720910536884,2.3674,3192.5,3189.6,3.0]
[1720910537082,5.3674,3192.5,3189.7,0.45]
[1720910537262,5.3674,3192.5,3189.5,3.405]
[1720910537782,14.99310902,3192.5,3189.5,3.405]
[1720910537984,14.99310902,3192.5,3189.5,1.905]
[1720910538376,14.99310902,3192.5,3189.5,3.405]
[1720910538576,0.62764,3192.4,3189.6,0.6405]
[1720910538889,3.62764,3192.4,3189.7,1.5]
[1720910539291,3.62764,3192.4,3189.9,1.5]
[1720910539481,3.62764,3192.4,3190.0,0.55]
[1720910540658,3.62764,3192.4,3189.8,0.55]
[1720910540881,2.4957,3192.2,3189.6,0.6405]
[1720910541198,15.12140902,3192.2,3189.5,1.5]
[1720910541487,15.12140902,3192.2,3189.1,1.5]
[1720910541488,12.62570902,3192.2,3189.1,1.5]
[1720910541664,2.609,3192.0,3188.9,1.905]
[1720910541863,3.0,3191.9,3189.0,0.1905]
[1720910542191,3.0,3191.9,3189.1,1.5]
[1720910542351,2.4957,3191.8,3189.0,0.1905]
[1720910542758,2.4957,3191.8,3188.5,2.2193]
[1720910543257,2.4957,3191.8,3188.8,2.2193]
[1720910543473,2.4957,3191.8,3189.5,1.5]
[1720910543788,2.4957,3191.8,3188.8,4.41445]
[1720910543971,2.4957,3191.8,3189.5,1.5]
[1720910544165,0.54957,3191.7,3189.5,1.5]
[1720910544380,3.54957,3191.7,3188.9,5.2193]
[1720910544553,3.54957,3191.7,3189.0,0.55]
[1720910544979,3.54957,3191.7,3189.0,1.5]
[1720910545180,2.4957,3191.6,3189.0,1.5]
[1720910545392,2.609,3191.3,3188.6,1.5]
[1720910545566,2.4957,3191.2,3188.8,1.5]
[1720910545765,5.4957,3191.2,3188.8,1.5]
[1720910546073,5.4957,3191.2,3188.4,1.5]
[1720910546074,2.4957,3191.1,3188.4,1.5]
[1720910547281,2.4957,3191.1,3188.5,0.06270298]
[1720910547486,0.441183,3191.0,3188.6,0.1967703]
[1720910547680,3.441183,3191.0,3189.2,1.5]
[1720910547993,3.441183,3191.0,3189.4,1.5]
[1720910547994,0.441183,3191.0,3189.4,1.5]
[1720910548199,0.441183,3191.0,3189.5,0.0626856]
[1720910548397,0.441183,3191.0,3189.6,0.55]
[1720910548555,2.4957,3191.1,3189.6,0.4]
[1720910548556,0.2936883,3190.9,3189.6,0.4]
[1720910549079,0.2936883,3190.9,3188.9,1.5]
[1720910549291,0.2936883,3190.9,3188.7,1.5]
[1720910550162,0.2936883,3190.9,3188.5,1.5]
[1720910550487,0.2936883,3190.9,3188.0,0.3143]
[1720910550488,2.609,3190.7,3188.0,0.3143]
[1720910550689,3.0,3190.6,3188.1,0.26843]
[1720910550981,3.0,3190.6,3188.0,0.3143]
[1720910550982,2.4957,3190.5,3188.0,0.3143]
[1720910551572,2.4957,3190.5,3188.1,0.06270539]
[1720910552158,2.4957,3190.5,3188.4,1.5]
[1720910552391,2.4957,3190.5,3188.0,2.2193]
[1720910552564,2.4957,3190.5,3188.5,0.55]
[1720910552891,2.4957,3190.3,3188.0,0.3143]
[1720910553269,2.4957,3190.3,3188.1,0.06270514]
[1720910553968,2.4957,3190.3,3188.0,2.2193]
[1720910553969,2.4957,3190.3,3188.0,0.3143]
[1720910554500,2.4957,3190.3,3188.1,0.06271091]
[1720910554697,2.4957,3190.3,3188.1,1.96771091]
[1720910554907,2.4957,3190.3,3189.1,1.5]
[1720910555068,2.4957,3190.3,3189.3,1.5]
[1720910555266,2.609,3192.2,3189.3,1.5]
[1720910555572,2.4957,3192.0,3189.4,0.55]
[1720910556105,2.81,3191.9,3189.4,0.55]
[1720910556322,0.281,3191.8,3189.5,1.56269144]
[1720910556502,0.281,3191.8,3190.2,1.5]
[1720910556817,0.281,3191.8,3190.3,0.55]
[1720910556970,0.281,3191.8,3190.2,1.5]
[1720910557306,0.27767,3191.7,3190.3,0.55]
[1720910557471,0.27767,3191.7,3188.6,0.3143]
[1720910557668,0.27767,3191.7,3188.9,1.5]
[1720910557669,2.4897,3191.5,3188.9,1.5]
[1720910557975,2.4897,3191.4,3188.2,0.52820109]
[1720910558170,2.4897,3191.4,3187.8,7.10043]
[1720910558171,2.609,3190.9,3188.7,1.5]
[1720910558469,2.4897,3190.8,3188.8,0.06270446]
[1720910558674,5.4897,3190.8,3188.7,1.5]
[1720910559080,2.4897,3190.8,3188.7,1.5]
[1720910559280,2.4897,3190.8,3188.8,0.06270613]
[1720910559498,0.50987,3190.7,3188.8,0.06270613]
[1720910560045,0.50987,3190.7,3188.9,1.5]
[1720910560178,2.4897,3190.8,3188.7,1.5]
[1720910560539,2.4897,3190.8,3188.8,0.6126911]
[1720910560738,2.4897,3190.8,3188.7,1.5]
[1720910561285,2.4897,3190.8,3188.2,1.5]
[1720910561606,2.4897,3190.7,3188.2,1.5]
[1720910561817,3.03867,3190.6,3188.2,1.5]
[1720910561988,3.0,3190.5,3188.2,1.5]
[1720910562182,2.4897,3190.4,3188.2,1.5]
[1720910563186,2.4897,3190.4,3188.3,0.06271589]
[1720910564121,2.4897,3190.4,3188.2,1.5]
[1720910564303,0.54897,3190.3,3188.2,1.5]
[1720910564638,3.54897,3190.3,3188.2,1.5]
[1720910564819,2.4897,3190.2,3188.0,1.5]
[1720910564989,2.4897,3190.1,3187.7,1.5]
[1720910565194,2.4897,3190.1,3187.8,2.73068751]
[1720910565409,2.4897,3189.6,3187.5,0.64284043]
[1720910565628,2.4897,3189.6,3187.3,2.14284043]
[1720910565845,5.4897,3189.6,3187.1,0.64284043]
[1720910566124,1.7,3189.5,3187.2,2.73120828]
[1720910566327,2.609,3189.1,3187.0,0.64284043]
[1720910566536,2.4897,3188.9,3186.8,2.14284043]
[1720910566690,2.4897,3188.9,3186.9,1.09257912]
[1720910566897,0.54897,3188.8,3186.9,0.06274256]
[1720910567117,0.54897,3188.8,3187.0,1.09258105]
[1720910567325,0.54897,3188.8,3186.5,1.28568086]
[1720910567326,0.54897,3188.8,3187.1,0.06274012]
[1720910567507,2.4897,3188.9,3186.9,2.14284043]
[1720910567710,2.4897,3188.9,3187.0,2.73128548]
[1720910567929,2.4897,3188.9,3187.1,2.73128548]
[1720910568226,2.4897,3188.9,3186.9,2.14284043]
[1720910568430,2.4897,3188.9,3187.0,2.73129718]
[1720910568729,0.24897,3188.8,3186.9,1.56273283]
[1720910568959,0.24897,3188.8,3187.1,1.5]
[1720910569164,0.24897,3188.8,3186.9,2.20557326]
[1720910569311,0.24897,3188.8,3187.0,2.73130018]
[1720910569516,2.4897,3188.9,3187.3,1.5]
[1720910569805,2.4897,3188.9,3187.4,2.73129326]
[1720910570029,2.4897,3188.9,3187.5,4.23129326]
[1720910570198,2.4897,3188.9,3187.6,1.0925173]
[1720910570395,2.4897,3188.9,3187.9,1.5]
[1720910570843,2.4897,3190.3,3188.0,4.87355903]
[1720910571139,0.2609,3190.2,3188.3,0.64284043]
[1720910571306,0.2609,3190.2,3188.4,1.64200909]
[1720910571517,0.2609,3190.2,3188.5,2.73002272]
[1720910571853,0.27506,3190.1,3188.5,0.84228632]
[1720910572135,0.27506,3190.1,3188.2,0.96426064]
[1720910572136,0.27506,3190.1,3188.4,3.0]
[1720910572348,0.27506,3190.1,3188.2,3.64284043]
[1720910572551,0.27506,3190.1,3188.3,7.23012098]
[1720910572706,0.27506,3190.1,3188.4,1.09204839]
[1720910572903,0.27506,3190.1,3188.1,1.5]